Cogmind - Beta 15 @@@ ROGUE MODE // 2025.09.04 @ 22:30:11 Player: Singularius Result: Core destroyed Performance ------------- Evolutions (4) 2000 Regions Visited (9) 1800 Robots Destroyed (183) 915 Value Destroyed (7017) 7017 Prototype IDs (13) 260 Alien Tech Used (0) 0 Bonus (1614) 1614 TOTAL SCORE: 13606 Bonus ------- High Alert Combat Kills 1256 Follower Combat Kills 436 Friendly Fire -78 Cogmind --------- Core Integrity 0/850 Matter 225/300 Energy 476/500 System Corruption 4% Temperature Critical (532) Movement Treading (160) Location -6/Factory Parts ------- > --- POWER (1) -------- F-cell Engine > --- PROPULSION (6) --- Improved Medium Treads Heavy Treads Flexi-carbon Leg Armored Leg Backup Propulsion III > --- UTILITY (5) ------ Hardened Medium Armor Plating Damper Plating > --- WEAPON (3) ------- Force Rifle Cooled Particle Cannon Coil Gun > --- INVENTORY (5) ---- Light Angular Momentum Engine Hardened Heavy Armor Plating Beamcaster Gauss Rifle Peak State ------------ > --- POWER ------------ F-cell Engine > --- PROPULSION ------- Improved Medium Treads Heavy Treads Flexi-carbon Leg Armored Leg Backup Propulsion III > --- UTILITY ---------- Hardened Medium Armor Plating Damper Plating > --- WEAPON ----------- Force Rifle Cooled Particle Cannon Coil Gun > --- INVENTORY -------- Hardened Medium Armor Plating Hardened Heavy Armor Plating Beamcaster Gauss Rifle [Rating: 81] Favorites ----------- Power Fission Core Engine Heavy Ion Engine Power Core Fission Core Propulsion Light Treads Treads Light Treads Leg Carbon-fiber Leg Wheel Wheel Hover Unit Backup Propulsion III Utility Huge Storage Unit Device Improved Heat Sink Storage Huge Storage Unit Processor Improved Signal Interpreter Protection Hardened Medium Armor Plating Weapon Precision Assault Rifle Energy Gun Heavy Laser Energy Cannon Cooled Particle Cannon Ballistic Gun Precision Assault Rifle Ballistic Cannon Light Cannon Launcher Rocket Launcher Build | -11 -10 -10 -10 -9 -8 -7 -6 -6 -6 ------- Run | Yrd Mat Min Exi Min Mat Fac Fac Was Fac Slots Evolved 8 | . . . . . 4 2 2 . . Power . | . . . . . . . . . . Propulsion 4 | . . . . . 2 2 . . . Utility 3 | . . . . . 1 . 2 . . Weapon 1 | . . . . . 1 . . . . Parts Attached 145 | 7 3 2 . 1 44 39 28 13 8 Power 14 | 1 1 . . 1 3 4 2 . 2 Engine 11 | 1 1 . . 1 2 3 1 . 2 Core 3 | . . . . . 1 1 1 . . Reactor . | . . . . . . . . . . Propulsion 56 | 2 . 2 . . 17 14 14 4 3 Treads 39 | 2 . . . . 13 14 5 4 1 Leg 14 | . . 2 . . 4 . 6 . 2 Wheel 3 | . . . . . . . 3 . . Hover . | . . . . . . . . . . Flight . | . . . . . . . . . . Utility 30 | 2 . . . . 8 7 7 6 . Device 9 | 1 . . . . 2 3 3 . . Storage 4 | 1 . . . . 2 1 . . . Processor 2 | . . . . . . . 2 . . Hackware . | . . . . . . . . . . Protection 15 | . . . . . 4 3 2 6 . Artifact . | . . . . . . . . . . Weapon 45 | 2 2 . . . 16 14 5 3 3 Energy Gun 18 | 2 . . . . 6 5 3 1 1 Energy Cannon 8 | . . . . . 3 2 2 . 1 Ballistic Gun 13 | . 1 . . . 4 5 . 2 1 Ballistic Cannon 3 | . 1 . . . 1 1 . . . Launcher 3 | . . . . . 2 1 . . . Special Weapon . | . . . . . . . . . . Impact Weapon . | . . . . . . . . . . Slashing Weapon . | . . . . . . . . . . Piercing Weapon . | . . . . . . . . . . Special Melee Weapon . | . . . . . . . . . . Unidentified Prototypes 8 | . . . . . 1 4 1 . 2 Parts Lost 55 | . . . . 1 9 10 25 10 . Power 5 | . . . . 1 2 . 2 . . Propulsion 27 | . . . . . . 6 15 6 . Utility 10 | . . . . . 2 3 4 1 . Weapon 13 | . . . . . 5 1 4 3 . Highest Loss Streak 10 | . . . . 1 3 1 6 10 . To Critical Strikes 2 | . . . . . . 1 . 1 . Average Backups 15 | 2 7 8 8 7 10 23 22 8 4 Power 1 | . 1 1 1 . 1 3 2 . . Propulsion 3 | . 2 3 3 3 3 4 3 . . Utility 5 | . . 2 2 2 2 8 9 4 1 Weapon 4 | . 1 2 2 2 3 7 6 2 2 Tool/Special . | . . . . . . . . . . Unused Backups 39 | . 3 . . . 5 13 3 13 2 Power 6 | . . . . . . 3 2 1 . Propulsion 4 | . 1 . . . 1 . 1 1 . Utility 16 | . 2 . . . 2 3 . 9 . Weapon 13 | . . . . . 2 7 . 2 2 Tool/Special . | . . . . . . . . . . Average Slot Usage (%) 93 | . 100 99 100 99 94 98 97 57 70 Engine 6 | . 14 14 14 13 8 5 . 3 6 Core 1 | . . . . . . 1 5 1 . Treads 27 | . 28 24 . . 29 45 19 4 11 Leg 6 | . . 3 28 28 6 . 12 4 8 Wheel 1 | . . . . . . . 6 2 . Device 8 | . 14 14 14 14 8 6 11 2 . Storage 7 | . 14 14 14 14 9 7 6 1 . Processor 2 | . . . . . . . 9 2 . Protection 5 | . . . . . 8 7 3 9 13 Energy Gun 7 | . 18 . . . 6 5 7 5 8 Energy Cannon 2 | . . . . . 5 3 3 1 2 Ballistic Gun 7 | . 3 14 14 14 8 6 7 8 8 Ballistic Cannon 3 | . 6 14 14 14 2 4 . . . Peak Build Rating 81 | 7 8 8 8 8 28 51 66 62 81 Average Rating 37 | 4 7 7 8 7 23 44 56 46 74 On Entrance 24 | . 7 8 8 8 8 28 49 64 62 Naked Turns 113 | . . . . . . . . 113 . Heaviest Build 116 | 14 16 16 16 16 110 116 115 109 82 Greatest Support 136 | 40 40 40 20 20 80 136 126 70 100 Greatest Overweight (x) 12 | . . 5 . . 1 1 5 12 . Average Overweight (x) . | . . . . . . . 3 . . Largest Inventory Capacity 25 | 8 8 8 8 8 25 25 25 25 5 Average Capacity 16 | 6 8 8 8 8 11 25 25 8 5 Most Carried 25 | 4 8 8 8 8 24 25 25 25 5 Average Carried 15 | 2 7 8 8 7 10 24 22 8 5 Final Capacity 25 | 8 8 8 8 8 25 25 25 5 5 Final Carried 25 | 4 8 8 8 8 24 25 25 5 5 Class Distribution -------------------- 27% | Scavenger-Tank 24% | Tank 21% | Mutant 12% | Scavenger-Gunner 7% | Scavenger-Skirmisher 3% | Scavenger-Mutant Dominant Class ---------------- Mutant | -10/Materials Mutant | -10/Mines Scavenger-Mutant | -10/Exiles Mutant | -9/Mines Scavenger-Tank | -8/Materials Tank | -7/Factory Scavenger-Gunner | -6/Factory Tank | -6/Waste Tank | -6/Factory Resources | -11 -10 -10 -10 -9 -8 -7 -6 -6 -6 ----------- Run | Yrd Mat Min Exi Min Mat Fac Fac Was Fac Matter Collected 4454 | 257 99 69 . 110 1068 1522 969 187 173 Remotely . | . . . . . . . . . . Salvage Created 7528 | 18 377 53 . 64 2254 1957 2584 . 221 Parts 395 | 2 30 6 . 6 109 98 129 . 15 Haulers Intercepted 5 | . 1 . . . 2 . 2 . . Recyclers Shooed 4 | . . . . . 2 . 2 . . Parts Field Recycled . | . . . . . . . . . . Retrieved Matter . | . . . . . . . . . . Parts Self-Destructed . | . . . . . . . . . . Prevented . | . . . . . . . . . . Kills | -11 -10 -10 -10 -9 -8 -7 -6 -6 -6 ------- Run | Yrd Mat Min Exi Min Mat Fac Fac Was Fac Combat Hostiles Destroyed 167 | . 12 3 . 5 51 54 38 . 4 Guns 82 | . 11 1 . 2 24 15 26 . 3 Cannons 54 | . 1 2 . 3 16 21 10 . 1 AOE 31 | . . . . . 11 18 2 . . Classes Destroyed 17 | 1 3 . . . 8 3 2 . . Worker 2 | . . . . . 1 . 1 . . Builder 15 | . . . . . 1 2 12 . . Tunneler 1 | 1 . . . . . . . . . Hauler 5 | . 1 . . . 2 . 2 . . Recycler 6 | . . . . . 1 4 1 . . Operator 1 | . . . . . . . 1 . . Swarmer 35 | . 6 2 . 3 3 11 9 . 1 Grunt 59 | . 6 . . 2 31 5 14 . 1 Brawler 6 | . . . . . 3 2 1 . . Duelist 2 | . . . . . 1 . 1 . . Protector 2 | . . . . . 2 . . . . Sentry 16 | . . . . . 9 6 1 . . Demolisher 2 | . . . . . . 2 . . . Hunter 15 | . . . . . 2 5 6 . 2 Programmer 14 | . . . . . . 9 5 . . Behemoth 1 | . . . . . . . 1 . . Assembled 14 | . . . . . . 14 . . . Best Kill Streak 14 | 1 3 2 . 3 8 14 8 . 2 Combat Bots Only 14 | . 3 2 . 3 7 14 7 . 2 Max Kills in Single Turn 4 | 1 2 1 . 1 3 3 4 . 1 Gunslinging 1 | . 1 . . . . 1 1 . . Exploded 3 | . . . . . 3 3 2 . . Melee . | . . . . . . . . . . Uniques/NPCs Destroyed 1 | . . 1 . . . . . . . YI-UF0 (-10/Mines) Combat | -11 -10 -10 -10 -9 -8 -7 -6 -6 -6 -------- Run | Yrd Mat Min Exi Min Mat Fac Fac Was Fac Hostile Shots Fired 1085 | . 45 19 . 29 211 354 371 13 43 Missed 296 | . 7 2 . 8 51 110 106 . 12 Hits 789 | . 38 17 . 21 160 244 265 13 31 Melee 19 | . . . . . . 4 2 13 . Projectile 770 | . 38 17 . 21 160 240 263 . 31 AOE 22 | . . 10 . . . 12 . . . Critical Strikes 27 | . 1 . . . 11 6 6 3 . Part Disruptions 2 | . . . . . . 2 . . . Damage Taken 12978 | . 375 446 . 205 2687 4028 3784 832 621 Core 1697 | . 57 110 . 42 207 415 294 427 145 Absorbed by Shields . | . . . . . . . . . . Ignored by Resistances 88 | . . . . . . . 61 . 27 Core Remaining (%) 54 | 100 . . . 16 62 40 . . . Volleys Fired 422 | 1 30 7 . 15 144 108 106 . 11 Largest 3 | 2 2 2 . 2 3 3 3 . 3 Hottest 225 | 90 90 50 . 50 155 172 225 . 185 Shots Fired 1020 | 2 60 14 . 30 309 273 295 2 35 Gun 697 | 2 51 7 . 15 228 150 215 2 27 Cannon 284 | . 9 7 . 15 69 107 69 . 8 Launcher 39 | . . . . . 12 16 11 . . Special . | . . . . . . . . . . Kinetic 487 | . 9 14 . 30 161 142 118 2 11 Thermal 435 | 2 51 . . . 107 113 138 . 24 Explosive 21 | . . . . . 12 9 . . . Electromagnetic 77 | . . . . . 29 9 39 . . Robot Hit Streak 37 | 2 11 6 . 10 20 13 37 11 2 Robot Miss Streak 9 | . 3 2 . 2 5 9 4 . 8 Penetration Max 1 | . . . . . 1 . . . . Secondary Targets 8 | . 2 . . . . 2 4 . . Max Gunslinging Chain 1 | . 1 . . . . 1 1 . . Shots Hit Robots 695 | 2 38 9 . 21 225 177 208 2 13 Core Hits 427 | 1 21 5 . 7 147 124 116 . 6 Critical Kills 2 | . . . . . 1 . 1 . . Critical Parts Destroyed 1 | . . . . . 1 . . . . Critical Strikes 18 | . 1 . . . 6 6 5 . . Burn 6 | . 1 . . . . 2 3 . . Destroy 3 | . . . . . 2 . 1 . . Blast 8 | . . . . . 4 4 . . . Corrupt 1 | . . . . . . . 1 . . Melee Attacks . | . . . . . . . . . . Impact . | . . . . . . . . . . Slashing . | . . . . . . . . . . Piercing . | . . . . . . . . . . Sneak Attacks . | . . . . . . . . . . Combat Hostiles . | . . . . . . . . . . Follow-up Attacks . | . . . . . . . . . . Damage Inflicted 17705 | 23 467 131 . 314 5233 5378 5724 63 372 Guns 9092 | 23 397 63 . 121 2441 2129 3597 57 264 Cannons 5265 | . 70 68 . 193 1579 2071 1176 . 108 Explosions 3319 | . . . . . 1211 1178 930 . . Melee . | . . . . . . . . . . Ramming 29 | . . . . . 2 . 21 6 . Kinetic 6711 | . 70 131 . 314 1936 2355 1768 57 80 Thermal 7333 | 23 397 . . . 1868 1954 2799 . 292 Explosive 1750 | . . . . . 1010 740 . . . Electromagnetic 1870 | . . . . . 405 329 1136 . . Impact 12 | . . . . . 12 . . . . Slashing . | . . . . . . . . . . Piercing . | . . . . . . . . . . Highest Corruption 16 | . . . . . . 16 4 4 4 Average Corruption 6 | . . . . . . 9 3 4 4 Corruption Purged . | . . . . . . . . . . Corruption Blocked . | . . . . . . . . . . Effects 146 | . . . . . . 84 33 12 17 Message Errors 34 | . . . . . . 20 9 2 3 Matter Fused 35 | . . . . . . 17 12 1 5 Heat Flow Errors 22 | . . . . . . 14 4 3 1 Energy Discharges 24 | . . . . . . 14 6 2 2 Parts Rejected 2 | . . . . . . 1 1 . . Data Loss (minor) 11 | . . . . . . 8 1 . 2 Data Loss (major) 7 | . . . . . . 3 . 2 2 Misfires 9 | . . . . . . 5 . 2 2 Weapon Failures 2 | . . . . . . 2 . . . Overload Shots . | . . . . . . . . . . Overflow Damage 197 | . . . . . 38 96 63 . . Projectiles 138 | . . . . . 29 77 32 . . Explosions 59 | . . . . . 9 19 31 . . Melee . | . . . . . . . . . . Knockbacks 23 | . 3 1 . 1 6 11 1 . . Impact 1 | . . . . . . . 1 . . Kinetic 20 | . 3 1 . 1 5 10 . . . Secondary 2 | . . . . . 1 1 . . . Self-Inflicted Damage 324 | . . . . . 179 39 103 3 . Shots 13 | . . . . . 5 2 6 . . Rammed 5 | . . . . . 1 . 3 1 . Targets Rammed 5 | . . . . . 1 . 3 1 . Kicked . | . . . . . . . . . . Crushed . | . . . . . . . . . . Highest Temperature 534 | 30 213 . . 6 399 418 534 236 532 Average Temperature 100 | 18 59 . . 2 64 93 116 99 207 Received Heat Transfer 2754 | . 135 9 . 72 1431 483 588 9 27 Effects 23 | . . . . . 2 4 9 . 8 Shutdowns 6 | . . . . . 1 1 2 . 2 Energy Bleed 2 | . . . . . 1 . . . 1 Interference 5 | . . . . . . 3 . . 2 Matter Decay 2 | . . . . . . . . . 2 Damage (minor) 1 | . . . . . . . 1 . . Damage (major) 6 | . . . . . . . 6 . . Damage (core) 1 | . . . . . . . . . 1 Siege Activations . | . . . . . . . . . . Martial Activations . | . . . . . . . . . . Shielding Activations . | . . . . . . . . . . Robots Disrupted . | . . . . . . . . . . Combat Hostiles . | . . . . . . . . . . Robots Corrupted 1 | . . . . . . . 1 . . Combat Hostiles . | . . . . . . . . . . Parts Fried 9 | . . . . . 1 . 8 . . Impact Corruptions . | . . . . . . . . . . Robots Melted 1 | . . . . . . . 1 . . Combat Hostiles . | . . . . . . . . . . Parts Melted 19 | . 2 . . . . 6 11 . . Heat Transferred 12341 | 62 1105 . . . 2948 2914 4868 . 444 Parts Sabotaged . | . . . . . . . . . . Parts Stolen . | . . . . . . . . . . Parts Stripped . | . . . . . . . . . . Power Chain Reactions 8 | . . . . . 3 2 3 . . Alert | -11 -10 -10 -10 -9 -8 -7 -6 -6 -6 ------- Run | Yrd Mat Min Exi Min Mat Fac Fac Was Fac Maximum Alert Level 3 | . . . . . 3 3 3 1 . Low Security (%) 36 | 100 100 100 . 100 33 . . 81 100 Level 1 21 | . . . . . 24 41 17 18 . Level 2 25 | . . . . . 11 28 73 . . Level 3 16 | . . . . . 30 29 9 . . Level 4 . | . . . . . . . . . . Level 5 . | . . . . . . . . . . High Security . | . . . . . . . . . . Max Security . | . . . . . . . . . . Sterilizations 1 | . . . . . 1 . . . . Peak Influence 998 | 5 135 50 . 75 998 974 878 304 111 Initial 467 | . . . . . 29 446 467 304 . Average 352 | . 45 10 . 16 425 536 505 80 31 Influence Increases 5274 | 5 366 103 . 200 1599 1330 1323 41 307 Destroy 0b10 Robot/C 3140 | . 240 80 . 100 980 800 760 . 180 Destroy 0b10 Robot/NC 165 | 5 5 . . . 35 30 85 . 5 Destroy Leader 732 | . 52 20 . 10 224 210 184 . 32 Allied During Kill 37 | . . 3 . . . . . . 34 Successful Hack 134 | . 8 . . . 19 55 40 . 12 Disable Machine 255 | . . . . . 75 135 45 . . Anti-Garrison Action 150 | . . . . . . . 150 . . Destroy Structure 211 | . 1 . . . 101 40 14 41 14 Partial Spotted 15 | . . . . . 15 . . . . Lose Combat Pursuer 435 | . 60 . . 90 150 60 45 . 30 Influence Decreases 5207 | 5 366 90 13 125 692 1357 1408 911 240 Entered New Map 1649 | . . . 13 . 46 536 488 566 . Time Decay 2932 | 5 366 90 . 115 586 721 670 161 218 Lost Part 520 | . . . . 10 60 100 250 100 . Lost Ally 106 | . . . . . . . . 84 22 Squads Dispatched 39 | . 2 . . . 9 7 18 . 3 Investigation 5 | . . . . . 3 1 1 . . Extermination 12 | . . . . . . 6 5 . 1 Reinforcement 16 | . 2 . . . 3 . 9 . 2 Assault 4 | . . . . . 2 . 2 . . Garrison 2 | . . . . . 1 . 1 . . Intercept . | . . . . . . . . . . Searches Triggered . | . . . . . . . . . . Construction Impeded 4 | . . . . . 1 . 3 . . Haulers Reinforced 4 | . . . . . . . 4 . . Active Scanning Responses . | . . . . . . . . . . Cargo Convoy Interrupts . | . . . . . . . . . . Stealth | -11 -10 -10 -10 -9 -8 -7 -6 -6 -6 --------- Run | Yrd Mat Min Exi Min Mat Fac Fac Was Fac Distress Signals 20 | . . . . . 12 2 3 . 3 Communications Jammed . | . . . . . . . . . . Distress Signals . | . . . . . . . . . . Times Spotted 258 | . 22 8 . 7 73 68 55 11 14 Peak Tracking Total 7 | . 5 3 . 5 7 6 5 5 4 Tactical Retreats 26 | . 3 . . 2 8 5 3 3 2 Traps | -11 -10 -10 -10 -9 -8 -7 -6 -6 -6 ------- Run | Yrd Mat Min Exi Min Mat Fac Fac Was Fac Traps Triggered 12 | . . . . . 3 5 2 . 2 Indirectly . | . . . . . . . . . . Trap Hack Attempts . | . . . . . . . . . . Triggered . | . . . . . . . . . . Disarmed . | . . . . . . . . . . Reprogrammed . | . . . . . . . . . . Reused . | . . . . . . . . . . Traps Extracted . | . . . . . . . . . . Installed . | . . . . . . . . . . Triggered . | . . . . . . . . . . Machines | -11 -10 -10 -10 -9 -8 -7 -6 -6 -6 ---------- Run | Yrd Mat Min Exi Min Mat Fac Fac Was Fac Machines Disabled 18 | . . . . . 5 9 4 . . Max in Single Turn 2 | . . . . . 2 2 1 . . Garrison Access 1 | . . . . . . . 1 . . Machines Repaired . | . . . . . . . . . . Machines Dismantled . | . . . . . . . . . . Machines Sabotaged . | . . . . . . . . . . Overloaded Fab Kills . | . . . . . . . . . . Hacking | -11 -10 -10 -10 -9 -8 -7 -6 -6 -6 --------- Run | Yrd Mat Min Exi Min Mat Fac Fac Was Fac Machines Accessed 33 | . 5 . . . 5 8 12 . 3 Terminals 25 | . 5 . . . 5 6 8 . 1 Fabricators 4 | . . . . . . 1 2 . 1 Repair Stations 4 | . . . . . . 1 2 . 1 Recycling Units . | . . . . . . . . . . Scanalyzers . | . . . . . . . . . . Garrison Access . | . . . . . . . . . . Total Hacks 65 | . 8 . . . 12 15 23 . 7 Successful 32 | . 4 . . . 8 8 10 . 2 Failed 33 | . 4 . . . 4 7 13 . 5 Catastrophic 7 | . . . . . . 3 4 . . Database Lockouts . | . . . . . . . . . . Manual 29 | . 6 . . . 5 6 10 . 2 Terminals 47 | . 8 . . . 12 10 14 . 3 Fabricators 8 | . . . . . . 2 4 . 2 Repair Stations 10 | . . . . . . 3 5 . 2 Recycling Units . | . . . . . . . . . . Scanalyzers . | . . . . . . . . . . Garrison Access . | . . . . . . . . . . Terminal Hacks 9 | . 1 . . . 4 2 2 . . Part Schematic 1 | . . . . . . 1 . . . Prototype ID Bank 3 | . . . . . 1 1 1 . . Alert Level 1 | . . . . . . . 1 . . Locate Traps 4 | . 1 . . . 3 . . . . Fabricator Hacks 5 | . . . . . . 2 3 . . Load Schematic 3 | . . . . . . 1 2 . . Build 2 | . . . . . . 1 1 . . Repair Station Hacks 4 | . . . . . . 1 2 . 1 Scan Component 4 | . . . . . . 1 2 . 1 Recycling Unit Hacks . | . . . . . . . . . . Scanalyzer . | . . . . . . . . . . Garrison Access Hacks . | . . . . . . . . . . Unauthorized Hacks 14 | . 3 . . . 4 3 3 . 1 Terminals 14 | . 3 . . . 4 3 3 . 1 Botnet 14 | . 3 . . . 4 3 3 . 1 Fabricators . | . . . . . . . . . . Repair Stations . | . . . . . . . . . . Recycling Units . | . . . . . . . . . . Scanalyzers . | . . . . . . . . . . Garrison Access . | . . . . . . . . . . Data Cores Recovered 1 | . . . . . . . 1 . . Used 1 | . . . . . . . 1 . . Hacking Detections 26 | . 2 . . . 3 6 12 . 3 Full Trace Events 2 | . . . . . . 1 1 . . Feedback Events . | . . . . . . . . . . Feedback Blocked . | . . . . . . . . . . Robot Schematics Acquired . | . . . . . . . . . . Robots Built . | . . . . . . . . . . Authchips . | . . . . . . . . . . Time . | . . . . . . . . . . Total Robot Build Rating . | . . . . . . . . . . Part Schematics Acquired 1 | . . . . . . 1 . . . Parts Built 4 | . . . . . . 2 2 . . Authchips . | . . . . . . . . . . Time 142 | . . . . . . 47 95 . . Total Part Build Rating 20 | . . . . . . 10 10 . . Parts Repaired . | . . . . . . . . . . Time . | . . . . . . . . . . Parts Recycled . | . . . . . . . . . . Recycled Matter . | . . . . . . . . . . Retrieved Matter . | . . . . . . . . . . Retrieved Components . | . . . . . . . . . . Parts Scanalyzed . | . . . . . . . . . . Part Schematics Acquired . | . . . . . . . . . . Parts Damaged . | . . . . . . . . . . Bothacking | -11 -10 -10 -10 -9 -8 -7 -6 -6 -6 ------------ Run | Yrd Mat Min Exi Min Mat Fac Fac Was Fac Used RIF Installer . | . . . . . . . . . . Robots Hacked . | . . . . . . . . . . Non-combat . | . . . . . . . . . . Combat . | . . . . . . . . . . Robot Hacks Applied . | . . . . . . . . . . Relay Couplers Released 2 | . . . . . . 1 1 . . Machine Destruction 2 | . . . . . . 1 1 . . Fabnet Peak Effective % . | . . . . . . . . . . Robots Rewired . | . . . . . . . . . . Allies Hacked . | . . . . . . . . . . Hacks Repelled . | . . . . . . . . . . Allies | -11 -10 -10 -10 -9 -8 -7 -6 -6 -6 -------- Run | Yrd Mat Min Exi Min Mat Fac Fac Was Fac Total Allies 19 | . . 1 . . . . . 18 . Largest Group 18 | . . 1 1 . . . . 18 6 Highest-Rated Group 638 | . . 31 31 . . . . 638 240 Highest-Rated Ally 50 | . . 31 31 . . . . 50 50 Total Orders . | . . . . . . . . . . Ally Attacks 206 | . . 8 . . . . . 163 35 Total Damage 8955 | . . 104 . . . . . 7962 889 Kills 19 | . . 2 . . . . . 11 6 Allies Corrupted . | . . . . . . . . . . Allies Melted 1 | . . . . . . . . . 1 Intel | -11 -10 -10 -10 -9 -8 -7 -6 -6 -6 ------- Run | Yrd Mat Min Exi Min Mat Fac Fac Was Fac Active Infowar (turns) 4854 | 19 1295 544 342 349 119 . 2064 122 . Sensors 1158 | . . . . . . . 1158 . . Seismic 3696 | 19 1295 544 342 349 119 . 906 122 . Robot Analysis Total . | . . . . . . . . . . Derelict Logs Recovered . | . . . . . . . . . . Drone Launches . | . . . . . . . . . . Drone Recoveries . | . . . . . . . . . . Exploration | -11 -10 -10 -10 -9 -8 -7 -6 -6 -6 ------------- Run | Yrd Mat Min Exi Min Mat Fac Fac Was Fac Turns Passed 12316 | 90 1295 544 342 349 2212 3401 2594 653 836 Spaces Moved 6372 | 48 709 299 286 247 883 1749 1182 506 463 Core 230 | 3 . 1 . . . . . 226 . Treads 4749 | 45 709 263 . . 850 1749 480 190 463 Legs 633 | . . 35 286 247 33 . 31 1 . Wheels 738 | . . . . . . . 671 67 . Hover 22 | . . . . . . . . 22 . Flight . | . . . . . . . . . . Fastest Speed 50 | 50 160 120 120 120 120 151 145 50 160 Average Speed 158 | 153 160 156 120 120 172 161 173 119 160 Slowest Speed 650 | 160 160 300 120 120 240 244 330 650 160 Overloaded Moves . | . . . . . . . . . . Propulsion Burnouts . | . . . . . . . . . . Robots Hopped . | . . . . . . . . . . Potential Cave-ins . | . . . . . . . . . . Cave-ins Triggered . | . . . . . . . . . . Exploration Rate (%) 55 | 4 98 63 77 62 70 45 27 98 15 Regions Visited 9 Branch Regions 3 Pre-discovered Areas . | . . . . . . . . . . Known Exits Taken . | . . . . . . . . . . Unknown Exits Taken 7 | 1 1 1 1 1 1 1 . . . Scrap Searched 1 | . . . . 1 . . . . . Spaces Dug 16 | . . . . . 14 . 2 . . Terrain Destroyed 168 | . . . . . 118 38 9 . 3 Melee . | . . . . . . . . . . Projectile 23 | . . . . . 5 12 3 . 3 AOE 145 | . . . . . 113 26 6 . . Terrain Rammed . | . . . . . . . . . . Walls Destroyed . | . . . . . . . . . . Machines Disabled . | . . . . . . . . . . Actions | -11 -10 -10 -10 -9 -8 -7 -6 -6 -6 --------- Run | Yrd Mat Min Exi Min Mat Fac Fac Was Fac Total 7790 | 59 812 362 285 269 1324 2108 1481 554 536 Wait 571 | . 55 53 . 6 168 115 108 21 45 Move 6364 | 47 708 298 285 246 882 1748 1182 505 463 Hop . | . . . . . . . . . . Pick Up 115 | 4 8 . . 1 37 33 28 2 2 Fast Attach 65 | 7 1 2 . . 18 13 6 12 6 Attach 53 | . . . . 1 11 12 25 4 . Detach 4 | . . . . . 2 . 1 1 . Swap 77 | . 4 . . . 22 33 15 1 2 Drop 114 | . 6 2 . . 39 46 7 7 7 Fire 422 | 1 30 7 . 15 144 108 106 . 11 Melee . | . . . . . . . . . . Ram 1 | . . . . . . . . 1 . Kick . | . . . . . . . . . . Crush 4 | . . . . . 1 . 3 . . Escape Stasis . | . . . . . . . . . . Rewire . | . . . . . . . . . . Trap . | . . . . . . . . . . Miscellaneous . | . . . . . . . . . . Route ------- -11/Scrapyard -10/Materials (discovered 5 exits: [*Mat x3] / [*Min] / [*Sub]) -10/Mines -10/Exiles (discovered 2 exits: [*Min x2]) -9/Mines -8/Materials (discovered 2 exits: *Fac x2) -7/Factory -6/Factory -6/Waste -6/Factory History --------- Turn | Location | Event 9 | -11/Scrapyard | Discovered new exit (range 15) 91 | -11/Scrapyard | Entered Materials 302 | -10/Materials | Build established: Mutant 645 | -10/Materials | Discovered new exit (range 10) 744 | -10/Materials | Discovered new exit (range 13) 857 | -10/Materials | Discovered new exit (range 7) 1189 | -10/Materials | Discovered new exit (range 5) 1216 | -10/Materials | Discovered new exit (range 11) 1386 | -10/Materials | Entered Mines 1420 | -10/Mines | YI-UF0 nonchalantly dropped a Grenade Launcher on the ground 1611 | -10/Mines | Core integrity fell below 50% 1612 | -10/Mines | Destroyed YI-UF0 1764 | -10/Mines | Received a Mining Laser from a helpful Derelict 1914 | -10/Mines | Found a hidden stash of uninstalled traps 1915 | -10/Mines | Assembled infested the area 1920 | -10/Mines | Assisted by a Guerilla fighting off Assembled 1925 | -10/Mines | Deemed a non-threat by the Exiles lab entrance 1925 | -10/Mines | Discovered new exit (range 5) 1930 | -10/Mines | Entered Exiles 1930 | -10/Exiles | Accompanied by 1 ally 1948 | -10/Exiles | Discovered new exit (range 15) 1963 | -10/Exiles | Met 8R-AWN 1980 | -10/Exiles | Met EX-HEX 2025 | -10/Exiles | Met EX-DEC 2063 | -10/Exiles | Visited The Gauntlet 2155 | -10/Exiles | Build established: Scavenger-Mutant 2256 | -10/Exiles | Discovered new exit (range 10) 2272 | -10/Exiles | Entered Mines 2367 | -9/Mines | Received a Rocket Launcher from a helpful Derelict 2451 | -9/Mines | Core integrity fell below 20% 2553 | -9/Mines | Discovered new exit (range 3) 2594 | -9/Mines | Build established: Mutant 2621 | -9/Mines | Entered Materials 2621 | -8/Materials | Evolved 4 slots: Propulsion x2, Utility x1, Weapon x1 2771 | -8/Materials | Lost 3 parts (1u2w) 3369 | -8/Materials | Build established: Scavenger-Tank 3509 | -8/Materials | Discovered new exit (range 15) 3944 | -8/Materials | Garrison activated, responded to threat 3985 | -8/Materials | Destroyed 7 combat bots 4221 | -8/Materials | First assault squad dispatched 4426 | -8/Materials | Discovered new exit (range 4) 4670 | -8/Materials | Sterilization system engaged 4670 | -8/Materials | Non-combat units ordered to evacuate 4770 | -8/Materials | Combat units ordered to evacuate 4833 | -8/Materials | Entered Factory 4833 | -7/Factory | Evolved 2 slots: Propulsion x2 4955 | -7/Factory | Destroyed 14 combat bots 6624 | -7/Factory | Core integrity fell below 50% 6748 | -7/Factory | Build established: Tank 7158 | -7/Factory | System corruption reached 10% 7538 | -7/Factory | Fabricated Fission Core (x2) 8161 | -7/Factory | Discovered new exit (range 13) 8234 | -7/Factory | Entered another Factory area 8234 | -6/Factory | Evolved 2 slots: Utility x2 8770 | -6/Factory | Fabricated Fission Core? 8795 | -6/Factory | Lost 3 parts (3n) 8796 | -6/Factory | Destroyed 7 combat bots 8920 | -6/Factory | Build established: Scavenger-Skirmisher 9239 | -6/Factory | Spotted B-75 Beast 9406 | -6/Factory | Lost 3 parts (2n1w) 9455 | -6/Factory | Lost 3 parts (1n2u) 9527 | -6/Factory | Lost 6 parts (4n2w) 9547 | -6/Factory | Destroyed B-75 Beast 9710 | -6/Factory | Build established: Scavenger-Gunner 9811 | -6/Factory | Discovered new exit (range 5) 9817 | -6/Factory | Identified exit to Lower Caves 10573 | -6/Factory | Garrison activated, responded to threat 10828 | -6/Factory | Sucked down chute 10828 | -6/Factory | Entered Waste 10907 | -6/Waste | Spotted C-40 Crusher 10928 | -6/Waste | Spotted C-40 Crusher 10929 | -6/Waste | Spotted C-40 Crusher 10941 | -6/Waste | Spotted C-40 Crusher 10941 | -6/Waste | Crushed by Compactor (1 part destroyed, 2 dropped) 10944 | -6/Waste | Crushed by Compactor (1 part destroyed, 1 dropped) 10947 | -6/Waste | Crushed by Compactor (1 part destroyed, 1 dropped) 10950 | -6/Waste | Crushed by Compactor (1 part destroyed, 2 dropped) 10950 | -6/Waste | Crushed by Compactor (1 part destroyed, 2 dropped) 10953 | -6/Waste | Crushed by Compactor (1 part destroyed, 2 dropped) 10955 | -6/Waste | Crushed by Compactor (1 part destroyed, 1 dropped) 10957 | -6/Waste | Core integrity fell below 50% 10960 | -6/Waste | Crushed by Compactor (1 part destroyed) 10961 | -6/Waste | Crushed by Compactor (1 part destroyed) 10988 | -6/Waste | Spotted C-40 Crusher 10992 | -6/Waste | Lost 10 parts (6n1u3w) 11015 | -6/Waste | Spotted C-40 Crusher 11045 | -6/Waste | Core integrity fell below 20% 11053 | -6/Waste | Discovered new exit (range 11) 11058 | -6/Waste | Warlord forces began an assault 11112 | -6/Waste | Allies destroyed C-40 Crusher 11121 | -6/Waste | Allies destroyed C-40 Crusher 11137 | -6/Waste | Allies destroyed C-40 Crusher 11168 | -6/Waste | Lost 7 allies 11173 | -6/Waste | Allies destroyed C-40 Crusher 11174 | -6/Waste | Found Damper Plating 11189 | -6/Waste | Allies destroyed C-40 Crusher 11211 | -6/Waste | Lost 5 allies 11408 | -6/Waste | Build established: Tank 11481 | -6/Waste | Entered Factory 11481 | -6/Factory | Accompanied by 6 allies 12318 | -6/Factory | Core destroyed Last Messages --------------- 12277_ K-01 Serf collects debris. 12280_ R-10 Processor collects Targeting Computer. 12280_ R-10 Processor collects Gauss Rifle. 12281_ R-10 Processor collects Flexi-carbon Leg. 12283_ K-01 Serf collects debris. 12285_ R-10 Processor collects Flexi-carbon Leg. 12286_ K-01 Serf collects debris. 12287_ K-01 Serf cleans the Assembly Bed. 12302_ Overheating: System interference. 12302_ Force Rifle temporarily disabled. 12302_ U-05 Engineer builds a Wall. 12304_ Overheating: Matter decay (-51). 12304_ K-01 Serf cleans the Assembly Bed. 12311_ E9-TOZ(m) destroyed. 12314_ Slug penetrates S-27 Virus. 12315_ K-01 Serf cleans the Assembly Bed. 12317_ S-27 Virus destroyed. 12317_ Slug penetrates Wall. 12318_ Overheating: Core damaged (-127). Map ----- +----------------------------------------------------+ | ?????????????????????????????????????????????????? | | ?????????????????????????????????????????????????? | | ?????????????????????????????????????????????????? | | ?????????????????????????????????????????????????? | | ?????????????????????????????????????????????????? | | ?????????????????????????????????????????????????? | | ?????????????????????????????????????????????????? | | ?????????????????????????????????????????????????? | | ??????????????????????????? ?????????????????????? | | ??????????????????????????? ?????????????????????? | | ??????????????????????????? ?????????????????????? | | ??????????????????????????? ?????????????????????? | | ??????????????????????????? ?????????????????????? | | ??????????????????????????? ?????????????????????? | | ??????????????????????????? ?????????????????????? | | ###???????????????????????# #????????????????????? | | #####??????????????????# #????????????????????? | | ??????????????????# #????????????????????? | | ?????####?######### #????????????????????? | | ?????# ? t # #????????????????????? | | #?????# """""" # #????????????????????? | | #?????# """""" # #####????????????????? | | #?????# """""" [# #????????????????? | | ##????# """""" %# u #????????????????? | | ###### k %=s% #????????????????? | | / """""" @# + """????????????? | | #????# """""" m# # """"???????????? | | #### #????# """""" # # """"???????????? | | ??????# ###### """""" # #? ???????????? | | ??????# + k k # # ? ??????????? | | ??????######## %% # # ? ?????????? | | ?????????????#########+#### #########????????? | | ?????????????????????#[#??# #????????????????? | | ?????????????????????#!???# #????????????????? | | ?????????????????########## #????????????????? | | ?????????????????? # #????????????????? | | ?????????????????# """" ! # #????????????????? | | ?????????????????# """" # #????????????????? | | ?????????????????# """" % # #????????????????? | | ?????????????????# """" + #????????????????? | | ?????????????????# """" # #????????????????? | | ?????????????????# """" # #????????????????? | | ?????????????????# """" # ########?????????? | | ?????????????????# # # #?????????? | | ?????????????????########## # """ #?????????? | | ??????????????????????????# + "R" #?????????? | | ??????????????????????????# # " " #?????????? | | ??????????????????????????# # #?????????? | | ??????????????????????????# # """ #?????????? | | ??????????????????????????# # """ #?????????? | +----------------------------------------------------+ Best States ------------- Heat Dissipation 56 Energy Generation 19 Energy Capacity 500 Matter Stores 300 Matter Capacity 300 Sight Range 16 Robot Scan Range 15 Terrain Scan Density 10 Armor Coverage 1825 Resistance: TH 15 Resistance: EM 90 Evasion (%) 55 Targeting Accuracy 8 Recoil Reduction 6 Item Schematics ----------------- Fission Core | -7/Factory | Hacked Robot Schematics ------------------ None Fabricated ------------ Fission Core | x2 | -7/Factory Fission Core | x2 | -6/Factory Repaired ---------- Nothing Alien Tech Used ----------------- None Achievements -------------- None Challenges ------------ None Game ------ Seed HoverEncryptedWell Manual? 0 Play Time 02:14:13 Cumulative 129.6 hours Start 2025.09.03 @ 18:23:52 End 2025.09.04 @ 22:30:11 Sessions 3 Manual Loads 0 Difficulty Rogue Special Mode None Game No. 80 Rogue 80 Adventurer 0 Explorer 0 Win Type - Total 0 Types 0/0/0/0/0/0/0/0/0/0 Lore% 52 Gallery% 44 Achievement% 36 Wizard Run 0 Options --------- Layout 1 ASCII 0 Keyboard 0 Movement Numpad Keybinds 0 Fullscreen 1 Font 32/SmallcapsGlow Map View 50x35 Zoom Use 0% Tactical HUD 1 Map Filters NONE Filters NONE Steam 1 RUN: f0f0e955-2e6f-48d8-ad68-d075a7a6a16f